[Event "European Online Club-ch-G 2021"]
[Site "Online"]
[Date "2021.03.27"]
[Round "4.15"]
[White "Najer, Evgeniy"]
[Black "Kostolansky, Sebastian Lukas"]
[Result "1/2-1/2"]
[ECO "C11"]
[WhiteElo "2648"]
[BlackElo "2393"]
[Annotator "ChessBase"]
[PlyCount "116"]
[EventDate "2021.03.27"]
[EventType "team-tourn"]
[EventCountry "NET"]
[SourceTitle "playchess.com"]
[Source "ChessBase"]
[SourceQuality "1"]
[TimeControl "900+5"]

1. e4 {[%emt 0:00:00]} e6 {[%emt 0:00:11]} 2. d4 {[%emt 0:00:03]} d5 {[%emt 0:00:02]} 3. Nc3 {[%emt 0:00:02]} Nf6 {[%emt 0:00:03]} 4. e5 {[%emt 0:00:03]} Nfd7 {[%emt 0:00:02]} 5. f4 {[%emt 0:00:01]} c5 {[%emt 0:00:02]} 6. Nf3 {[%emt 0:00:02]} Nc6 {[%emt 0:00:02]} 7. Be3 {[%emt 0:00:01]} Qb6 {[%emt 0:00:32]} 8. Na4 {[%emt 0:00:07]} Qa5+ {[%emt 0:00:03]} 9. c3 {[%emt 0:00:01]} cxd4 {[%emt 0:00:04]} 10. b4 {[%emt 0:00:23]} Nxb4 {[%emt 0:01:14]} 11. cxb4 {[%emt 0:00:03]} Bxb4+ {[%emt 0:00:04]} 12. Bd2 {[%emt 0:00:03]} Bxd2+ {[%emt 0:00:02]} 13. Nxd2 {[%emt 0:00:03]} b6 {[%emt 0:00:08]} 14. Be2 {[%emt 0:05:28]} O-O {[%emt 0:03:13]} 15. O-O {[%emt 0:00:16]} Nc5 {[%emt 0:00:50]} 16. Nb2 {[%emt 0:04:34]} Qc3 {[%emt 0:05:18]} 17. Rb1 {[%emt 0:00:52]} Ne4 {[%emt 0:00:34]} 18. Nf3 {[%emt 0:01:14]} Qe3+ {[%emt 0:00:15]} 19. Kh1 {[%emt 0:00:02]} Nc3 {[%emt 0:01:15]} 20. Qxd4 {[%emt 0:00:03]} Qxd4 {[%emt 0:00:04]} 21. Nxd4 {[%emt 0:00:02]} Nxb1 {[%emt 0:00:01]} 22. Rxb1 {[%emt 0:00:01]} Bd7 {[%emt 0:01:05]} 23. Ba6 {[%emt 0:00:09]} Bc8 {[%emt 0:00:37]} 24. Bd3 {[%emt 0:00:03]} Bd7 {[%emt 0:00:19]} 25. Ba6 {[%emt 0:01:01]} Bc8 {[%emt 0:00:08]} 26. Bb5 {[%emt 0:00:01]} Bb7 {[%emt 0:00:41]} 27. Kg1 {[%emt 0:00:10]} Rac8 {[%emt 0:00:04]} 28. Kf2 {[%emt 0:00:23]} Rc3 {[%emt 0:00:11]} 29. Nd1 {[%emt 0:00:19]} Rc5 {[%emt 0:00:07]} 30. Ke1 {[%emt 0:00:18]} Rfc8 {[%emt 0:00:04]} 31. Kd2 {[%emt 0:00:02]} Kf8 {[%emt 0:00:03]} 32. Rb3 {[%emt 0:00:23]} R8c7 {[%emt 0:00:10]} 33. Bd3 {[%emt 0:00:20]} g6 {[%emt 0:00:04]} 34. Nb5 {[%emt 0:00:02]} Rd7 {[%emt 0:00:06]} 35. Nd6 {[%emt 0:00:08]} Bc6 {[%emt 0:00:04]} 36. Nc3 {[%emt 0:00:39]} Ke7 {[%emt 0:00:05]} 37. Ne2 {[%emt 0:00:03]} f6 {[%emt 0:00:05]} 38. Nd4 {[%emt 0:00:04]} fxe5 {[%emt 0:00:03]} 39. fxe5 {[%emt 0:00:01]} Ba8 {[%emt 0:00:06]} 40. Ra3 {[%emt 0:00:15]} Ra5 {[%emt 0:00:05]} 41. Rxa5 {[%emt 0:00:04]} bxa5 {[%emt 0:00:01]} 42. Be2 {[%emt 0:00:19]} Rxd6 {[%emt 0:00:09]} 43. exd6+ {[%emt 0:00:01]} Kxd6 {[%emt 0:00:01]} 44. Nb5+ {[%emt 0:00:02]} Kc5 {[%emt 0:00:02]} 45. Nc7 {[%emt 0:00:12]} Bb7 {[%emt 0:00:15]} 46. Nxe6+ {[%emt 0:00:02]} Kb4 {[%emt 0:00:01]} 47. Nf8 {[%emt 0:00:09]} d4 {[%emt 0:00:04]} 48. g4 {[%emt 0:00:04]} Bd5 {[%emt 0:00:03]} 49. Nxh7 {[%emt 0:00:05]} Bxa2 {[%emt 0:00:02]} 50. Nf8 {[%emt 0:00:07]} Bf7 {[%emt 0:00:02]} 51. Bd3 {[%emt 0:00:06]} a4 {[%emt 0:00:02]} 52. Bb1 {[%emt 0:00:10]} a3 {[%emt 0:00:03]} 53. Kd3 {[%emt 0:00:01]} Kc5 {[%emt 0:00:09]} 54. Nd7+ {[%emt 0:00:03]} Kd6 {[%emt 0:00:06]} 55. Nf6 {[%emt 0:00:07]} Ke5 {[%emt 0:00:10]} 56. Nd7+ {[%emt 0:00:02]} Kd6 {[%emt 0:00:02]} 57. Nf6 {[%emt 0:00:02]} Ke5 {[%emt 0:00:02]} 58. Nd7+ {[%emt 0:00:05]} Kd6 {[%emt 0:00:14]} 1/2-1/2

[Event "European Online Club-ch-G 2021"]
[Site "Online"]
[Date "2021.03.27"]
[Round "4.16"]
[White "Haring, Filip"]
[Black "Murzin, Volodar"]
[Result "1/2-1/2"]
[ECO "B51"]
[WhiteElo "2376"]
[BlackElo "2478"]
[Annotator "ChessBase"]
[PlyCount "171"]
[EventDate "2021.03.27"]
[EventType "team-tourn"]
[EventCountry "NET"]
[SourceTitle "playchess.com"]
[Source "ChessBase"]
[SourceQuality "1"]
[TimeControl "900+5"]

1. e4 {[%emt 0:00:00]} c5 {[%emt 0:00:03]} 2. Nf3 {[%emt 0:00:02]} d6 {[%emt 0:00:02]} 3. Bb5+ {[%emt 0:00:03]} Nd7 {[%emt 0:00:03]} 4. O-O {[%emt 0:00:07]} a6 {[%emt 0:00:06]} 5. Bd3 {[%emt 0:00:02]} Ngf6 {[%emt 0:00:02]} 6. c3 {[%emt 0:00:04]} e6 {[%emt 0:00:05]} 7. Bc2 {[%emt 0:00:21]} Be7 {[%emt 0:00:04]} 8. Qe2 {[%emt 0:00:56]} O-O {[%emt 0:00:08]} 9. d4 {[%emt 0:00:02]} b5 {[%emt 0:00:10]} 10. a4 {[%emt 0:01:43]} Bb7 {[%emt 0:00:05]} 11. Rd1 {[%emt 0:02:34]} Qc7 {[%emt 0:00:22]} 12. Bg5 {[%emt 0:01:03]} h6 {[%emt 0:02:22]} 13. Bh4 {[%emt 0:00:04]} Rfc8 {[%emt 0:00:29]} 14. Bd3 {[%emt 0:02:27]} Bf8 {[%emt 0:03:37]} 15. Bg3 {[%emt 0:02:53]} b4 {[%emt 0:01:02]} 16. cxb4 {[%emt 0:01:09]} cxb4 {[%emt 0:00:05]} 17. Nbd2 {[%emt 0:00:18]} Nh5 {[%emt 0:00:11]} 18. Nf1 {[%emt 0:00:43]} Nxg3 {[%emt 0:00:36]} 19. Nxg3 {[%emt 0:00:19]} a5 {[%emt 0:00:43]} 20. Qe3 {[%emt 0:00:44]} Nf6 {[%emt 0:00:21]} 21. Rac1 {[%emt 0:00:24]} Qb6 {[%emt 0:00:04]} 22. Rxc8 {[%emt 0:00:20]} Rxc8 {[%emt 0:00:04]} 23. Rc1 {[%emt 0:00:02]} Rc7 {[%emt 0:00:17]} 24. Qd2 {[%emt 0:00:29]} d5 {[%emt 0:00:37]} 25. e5 {[%emt 0:00:11]} Ne4 {[%emt 0:00:02]} 26. Qe3 {[%emt 0:00:05]} Nxg3 {[%emt 0:00:35]} 27. hxg3 {[%emt 0:00:01]} Bc6 {[%emt 0:00:16]} 28. b3 {[%emt 0:00:05]} Bd7 {[%emt 0:00:10]} 29. Qd2 {[%emt 0:00:06]} Be7 {[%emt 0:00:23]} 30. Rxc7 {[%emt 0:00:03]} Qxc7 {[%emt 0:00:01]} 31. Qc2 {[%emt 0:00:03]} Qb6 {[%emt 0:00:02]} 32. Kf1 {[%emt 0:00:07]} h5 {[%emt 0:00:52]} 33. Ke2 {[%emt 0:00:05]} Kf8 {[%emt 0:00:20]} 34. Qc1 {[%emt 0:00:03]} Qc6 {[%emt 0:01:01]} 35. Qxc6 {[%emt 0:00:05]} Bxc6 {[%emt 0:00:01]} 36. Ke3 {[%emt 0:00:06]} g5 {[%emt 0:00:21]} 37. Bc2 {[%emt 0:00:06]} Kg7 {[%emt 0:00:13]} 38. Ne1 {[%emt 0:00:08]} Be8 {[%emt 0:00:51]} 39. Nd3 {[%emt 0:00:03]} Bd8 {[%emt 0:01:14]} 40. Nc5 {[%emt 0:00:04]} Bb6 {[%emt 0:00:03]} 41. Bd1 {[%emt 0:00:08]} Kg6 {[%emt 0:00:11]} 42. Bc2+ {[%emt 0:00:06]} Kh6 {[%emt 0:00:03]} 43. Bd1 {[%emt 0:00:02]} Bc6 {[%emt 0:00:05]} 44. Be2 {[%emt 0:00:04]} Kg6 {[%emt 0:00:05]} 45. Bb5 {[%emt 0:00:06]} Ba8 {[%emt 0:00:07]} 46. Nd7 {[%emt 0:00:07]} Bd8 {[%emt 0:00:08]} 47. Bd3+ {[%emt 0:00:05]} Kg7 {[%emt 0:00:01]} 48. Nc5 {[%emt 0:00:03]} Be7 {[%emt 0:00:05]} 49. Ba6 {[%emt 0:00:04]} Bc6 {[%emt 0:00:06]} 50. Be2 {[%emt 0:00:05]} Kh6 {[%emt 0:00:10]} 51. Bb5 {[%emt 0:00:04]} Ba8 {[%emt 0:00:02]} 52. Ba6 {[%emt 0:00:07]} g4 {[%emt 0:00:05]} 53. Bd3 {[%emt 0:00:07]} Bg5+ {[%emt 0:00:02]} 54. Ke2 {[%emt 0:00:03]} Kg7 {[%emt 0:00:02]} 55. f3 {[%emt 0:00:06]} gxf3+ {[%emt 0:00:08]} 56. gxf3 {[%emt 0:00:02]} Bc1 {[%emt 0:00:02]} 57. Bc2 {[%emt 0:00:10]} Bg5 {[%emt 0:00:03]} 58. f4 {[%emt 0:00:04]} Be7 {[%emt 0:00:03]} 59. Ke3 {[%emt 0:00:02]} h4 {[%emt 0:00:01]} 60. gxh4 {[%emt 0:00:06]} Bxh4 {[%emt 0:00:02]} 61. f5 {[%emt 0:00:06]} Bg5+ {[%emt 0:00:06]} 62. Ke2 {[%emt 0:00:04]} exf5 {[%emt 0:00:03]} 63. Bxf5 {[%emt 0:00:02]} Kf8 {[%emt 0:00:05]} 64. Kd3 {[%emt 0:00:08]} Ke7 {[%emt 0:00:05]} 65. Bc8 {[%emt 0:00:03]} Bc6 {[%emt 0:00:04]} 66. Bb7 {[%emt 0:00:08]} Bxb7 {[%emt 0:00:17]} 67. Nxb7 {[%emt 0:00:01]} Kd7 {[%emt 0:00:02]} 68. Nd6 {[%emt 0:00:07]} f6 {[%emt 0:00:07]} 69. Nb7 {[%emt 0:00:08]} Kc7 {[%emt 0:00:11]} 70. Nc5 {[%emt 0:00:04]} Kc6 {[%emt 0:00:03]} 71. Ne6 {[%emt 0:00:03]} Bh4 {[%emt 0:00:01]} 72. Nd8+ {[%emt 0:00:06]} Kc7 {[%emt 0:00:09]} 73. Ne6+ {[%emt 0:00:04]} Kc6 {[%emt 0:00:07]} 74. Ke3 {[%emt 0:00:07]} Kd7 {[%emt 0:00:07]} 75. Nc5+ {[%emt 0:00:06]} Kc6 {[%emt 0:00:02]} 76. Nd3 {[%emt 0:00:06]} Bg5+ {[%emt 0:00:02]} 77. Kf3 {[%emt 0:00:02]} fxe5 {[%emt 0:00:05]} 78. Nxe5+ {[%emt 0:00:03]} Kc7 {[%emt 0:00:04]} 79. Kg4 {[%emt 0:00:06]} Be3 {[%emt 0:00:02]} 80. Nf3 {[%emt 0:00:01]} Kd6 {[%emt 0:00:02]} 81. Kf5 {[%emt 0:00:02]} Bf2 {[%emt 0:00:01]} 82. Kf6 {[%emt 0:00:03]} Be3 {[%emt 0:00:02]} 83. Kf7 {[%emt 0:00:04]} Bf2 {[%emt 0:00:08]} 84. Kf6 {[%emt 0:00:13]} Be3 {[%emt 0:00:04]} 85. Kf7 {[%emt 0:00:05]} Bf2 {[%emt 0:00:02]} 86. Kf6 {[%emt 0:00:04]} 1/2-1/2

[Event "European Online Club-ch-G 2021"]
[Site "Online"]
[Date "2021.03.27"]
[Round "4.17"]
[White "Jobava, Baadur"]
[Black "Bartel, Mateusz"]
[Result "0-1"]
[ECO "C44"]
[WhiteElo "2603"]
[BlackElo "2635"]
[Annotator "ChessBase"]
[PlyCount "100"]
[EventDate "2021.03.27"]
[EventType "team-tourn"]
[EventCountry "NET"]
[SourceTitle "playchess.com"]
[Source "ChessBase"]
[SourceQuality "1"]
[TimeControl "900+5"]

1. e4 {[%emt 0:00:00]} e5 {[%emt 0:00:10]} 2. Nf3 {[%emt 0:00:04]} Nc6 {[%emt 0:00:02]} 3. c3 {[%emt 0:00:05]} Nf6 {[%emt 0:00:30]} 4. d3 {[%emt 0:00:04]} g6 {[%emt 0:00:36]} 5. Bg5 {[%emt 0:05:29]} h6 {[%emt 0:00:20]} 6. Bxf6 {[%emt 0:00:05]} Qxf6 {[%emt 0:00:03]} 7. Nbd2 {[%emt 0:00:09]} h5 {[%emt 0:01:14]} 8. Be2 {[%emt 0:00:34]} Bh6 {[%emt 0:00:38]} 9. O-O {[%emt 0:00:10]} O-O {[%emt 0:00:02]} 10. a4 {[%emt 0:00:12]} d6 {[%emt 0:00:24]} 11. b4 {[%emt 0:00:55]} Bg4 {[%emt 0:00:46]} 12. a5 {[%emt 0:02:56]} a6 {[%emt 0:00:30]} 13. Nc4 {[%emt 0:00:50]} Bxf3 {[%emt 0:00:29]} 14. Bxf3 {[%emt 0:00:05]} Nd8 {[%emt 0:00:01]} 15. Rb1 {[%emt 0:02:29]} Ne6 {[%emt 0:02:03]} 16. b5 {[%emt 0:00:10]} Qe7 {[%emt 0:00:06]} 17. Re1 {[%emt 0:01:12]} Qd7 {[%emt 0:00:58]} 18. bxa6 {[%emt 0:00:06]} bxa6 {[%emt 0:00:04]} 19. d4 {[%emt 0:00:26]} exd4 {[%emt 0:00:09]} 20. cxd4 {[%emt 0:00:05]} Rab8 {[%emt 0:00:03]} 21. d5 {[%emt 0:00:20]} Ng5 {[%emt 0:00:31]} 22. Rxb8 {[%emt 0:00:05]} Rxb8 {[%emt 0:00:03]} 23. e5 {[%emt 0:00:13]} Nxf3+ {[%emt 0:01:24]} 24. Qxf3 {[%emt 0:00:02]} dxe5 {[%emt 0:00:01]} 25. Nxe5 {[%emt 0:00:04]} Qe7 {[%emt 0:00:57]} 26. g3 {[%emt 0:00:09]} Bg7 {[%emt 0:00:15]} 27. Nd3 {[%emt 0:00:02]} Qd6 {[%emt 0:00:09]} 28. Kg2 {[%emt 0:00:02]} Rd8 {[%emt 0:00:17]} 29. Nf4 {[%emt 0:00:03]} Bh6 {[%emt 0:00:02]} 30. Ne6 {[%emt 0:00:16]} fxe6 {[%emt 0:00:49]} 31. Rxe6 {[%emt 0:00:00]} Qxd5 {[%emt 0:00:11]} 32. Rxg6+ {[%emt 0:00:02]} Bg7 {[%emt 0:00:33]} 33. Rxa6 {[%emt 0:00:03]} Qxf3+ {[%emt 0:00:04]} 34. Kxf3 {[%emt 0:00:00]} Rd2 {[%emt 0:00:07]} 35. Rc6 {[%emt 0:00:14]} Be5 {[%emt 0:00:08]} 36. a6 {[%emt 0:00:09]} Bd6 {[%emt 0:00:07]} 37. h4 {[%emt 0:00:10]} Ra2 {[%emt 0:00:06]} 38. Ke3 {[%emt 0:00:04]} Kf7 {[%emt 0:00:02]} 39. f3 {[%emt 0:00:05]} Ra3+ {[%emt 0:00:15]} 40. Ke4 {[%emt 0:00:02]} Ke6 {[%emt 0:00:02]} 41. g4 {[%emt 0:00:09]} Ra4+ {[%emt 0:00:06]} 42. Kd3 {[%emt 0:00:03]} hxg4 {[%emt 0:00:02]} 43. fxg4 {[%emt 0:00:00]} Rxg4 {[%emt 0:00:03]} 44. h5 {[%emt 0:00:04]} Kd5 {[%emt 0:00:16]} 45. Rc1 {[%emt 0:00:13]} Rg3+ {[%emt 0:00:07]} 46. Ke2 {[%emt 0:00:03]} Ra3 {[%emt 0:00:05]} 47. h6 {[%emt 0:00:02]} Rxa6 {[%emt 0:00:02]} 48. h7 {[%emt 0:00:02]} Ra8 {[%emt 0:00:01]} 49. Rh1 {[%emt 0:00:03]} Rh8 {[%emt 0:00:04]} 50. Kf3 {[%emt 0:00:03]} Ke5 {[%emt 0:00:02]} 0-1

[Event "European Online Club-ch-G 2021"]
[Site "Online"]
[Date "2021.03.27"]
[Round "4.18"]
[White "Gumularz, Szymon"]
[Black "Dreev, Aleksey"]
[Result "1-0"]
[ECO "B13"]
[WhiteElo "2517"]
[BlackElo "2647"]
[Annotator "ChessBase"]
[PlyCount "69"]
[EventDate "2021.03.27"]
[EventType "team-tourn"]
[EventCountry "NET"]
[SourceTitle "playchess.com"]
[Source "ChessBase"]
[SourceQuality "1"]
[TimeControl "900+5"]

1. e4 {[%emt 0:00:00]} c6 {[%emt 0:00:04]} 2. d4 {[%emt 0:00:03]} d5 {[%emt 0:00:01]} 3. exd5 {[%emt 0:00:01]} cxd5 {[%emt 0:00:02]} 4. Bd3 {[%emt 0:00:01]} Nc6 {[%emt 0:00:02]} 5. c3 {[%emt 0:00:03]} Qc7 {[%emt 0:00:01]} 6. h3 {[%emt 0:00:02]} e6 {[%emt 0:00:06]} 7. Nf3 {[%emt 0:00:07]} Bd6 {[%emt 0:00:02]} 8. O-O {[%emt 0:00:01]} Nge7 {[%emt 0:00:06]} 9. Re1 {[%emt 0:00:03]} Ng6 {[%emt 0:01:50]} 10. h4 {[%emt 0:00:46]} Bd7 {[%emt 0:00:32]} 11. a4 {[%emt 0:00:44]} Nce7 {[%emt 0:01:24]} 12. Na3 {[%emt 0:01:37]} a6 {[%emt 0:00:04]} 13. Nc2 {[%emt 0:00:02]} Nf4 {[%emt 0:00:19]} 14. Bf1 {[%emt 0:00:13]} O-O {[%emt 0:02:23]} 15. Ne5 {[%emt 0:00:23]} Bxe5 {[%emt 0:00:12]} 16. dxe5 {[%emt 0:00:31]} Nfg6 {[%emt 0:00:02]} 17. h5 {[%emt 0:04:57]} Nxe5 {[%emt 0:00:05]} 18. h6 {[%emt 0:00:03]} g6 {[%emt 0:00:02]} 19. Bf4 {[%emt 0:00:06]} f6 {[%emt 0:00:03]} 20. Nd4 {[%emt 0:00:07]} g5 {[%emt 0:00:56]} 21. Bg3 {[%emt 0:00:22]} N7g6 {[%emt 0:00:03]} 22. Bd3 {[%emt 0:01:29]} Nf4 {[%emt 0:00:51]} 23. Bc2 {[%emt 0:01:15]} Rf7 {[%emt 0:00:17]} 24. Qc1 {[%emt 0:00:28]} Kh8 {[%emt 0:00:38]} 25. Bxf4 {[%emt 0:00:04]} gxf4 {[%emt 0:00:02]} 26. Qxf4 {[%emt 0:00:02]} Rg8 {[%emt 0:00:03]} 27. Re2 {[%emt 0:00:54]} Qd6 {[%emt 0:00:50]} 28. Rae1 {[%emt 0:00:20]} Qf8 {[%emt 0:00:32]} 29. Rxe5 {[%emt 0:00:45]} fxe5 {[%emt 0:00:03]} 30. Qxe5+ {[%emt 0:00:01]} Rf6 {[%emt 0:00:01]} 31. Re3 {[%emt 0:00:02]} Qxh6 {[%emt 0:05:41]} 32. Rh3 {[%emt 0:00:39]} Rxg2+ {[%emt 0:00:04]} 33. Kxg2 {[%emt 0:00:18]} Qg7+ {[%emt 0:00:01]} 34. Kh1 {[%emt 0:00:14]} Rh6 {[%emt 0:00:22]} 35. Qb8+ {[%emt 0:00:09]} 1-0

[Event "European Online Club-ch-G 2021"]
[Site "Online"]
[Date "2021.03.27"]
[Round "4.19"]
[White "Piorun, Kacper"]
[Black "Mastrovasilis, Dimitrios"]
[Result "1-0"]
[ECO "C42"]
[WhiteElo "2615"]
[BlackElo "2609"]
[Annotator "ChessBase"]
[PlyCount "59"]
[EventDate "2021.03.27"]
[EventType "team-tourn"]
[EventCountry "NET"]
[SourceTitle "playchess.com"]
[Source "ChessBase"]
[SourceQuality "1"]
[TimeControl "900+5"]

1. e4 {[%emt 0:00:00]} e5 {[%emt 0:00:04]} 2. Bc4 {[%emt 0:00:03]} Nf6 {[%emt 0:00:06]} 3. d3 {[%emt 0:00:02]} Nc6 {[%emt 0:00:04]} 4. Nc3 {[%emt 0:00:03]} Bb4 {[%emt 0:00:03]} 5. Nf3 {[%emt 0:00:26]} d5 {[%emt 0:00:29]} 6. exd5 {[%emt 0:00:06]} Nxd5 {[%emt 0:00:02]} 7. O-O {[%emt 0:00:02]} Bxc3 {[%emt 0:00:30]} 8. bxc3 {[%emt 0:00:04]} O-O {[%emt 0:00:01]} 9. Bg5 {[%emt 0:00:40]} f6 {[%emt 0:00:56]} 10. Bd2 {[%emt 0:00:12]} Bg4 {[%emt 0:01:03]} 11. Qe2 {[%emt 0:00:45]} Na5 {[%emt 0:00:41]} 12. Bxd5+ {[%emt 0:01:19]} Qxd5 {[%emt 0:00:04]} 13. c4 {[%emt 0:00:01]} Bxf3 {[%emt 0:00:44]} 14. gxf3 {[%emt 0:00:05]} Qc5 {[%emt 0:00:10]} 15. Rab1 {[%emt 0:03:26]} Nc6 {[%emt 0:01:27]} 16. Be3 {[%emt 0:00:22]} Qd6 {[%emt 0:03:06]} 17. Rxb7 {[%emt 0:00:08]} f5 {[%emt 0:00:03]} 18. Rb5 {[%emt 0:00:08]} f4 {[%emt 0:01:29]} 19. Bc5 {[%emt 0:00:04]} Qg6+ {[%emt 0:01:53]} 20. Kh1 {[%emt 0:00:03]} a6 {[%emt 0:00:02]} 21. Rb7 {[%emt 0:00:25]} Nd4 {[%emt 0:02:35]} 22. Qxe5 {[%emt 0:00:33]} Nf5 {[%emt 0:00:57]} 23. Bxf8 {[%emt 0:01:52]} Rxf8 {[%emt 0:00:00]} 24. Rg1 {[%emt 0:00:27]} Qh5 {[%emt 0:00:10]} 25. Qd5+ {[%emt 0:01:22]} Kh8 {[%emt 0:00:02]} 26. Rgb1 {[%emt 0:00:40]} h6 {[%emt 0:00:23]} 27. Rb8 {[%emt 0:00:04]} Rxb8 {[%emt 0:00:06]} 28. Rxb8+ {[%emt 0:00:02]} Kh7 {[%emt 0:00:02]} 29. Qg8+ {[%emt 0:00:01]} Kg6 {[%emt 0:00:01]} 30. Qe8+ {[%emt 0:00:02]} 1-0

[Event "European Online Club-ch-G 2021"]
[Site "Online"]
[Date "2021.03.27"]
[Round "4.20"]
[White "Wieczorek, Oskar"]
[Black "Shchekachev, Andrei"]
[Result "1/2-1/2"]
[ECO "B06"]
[WhiteElo "2498"]
[BlackElo "2515"]
[Annotator "ChessBase"]
[PlyCount "67"]
[EventDate "2021.03.27"]
[EventType "team-tourn"]
[EventCountry "NET"]
[SourceTitle "playchess.com"]
[Source "ChessBase"]
[SourceQuality "1"]
[TimeControl "900+5"]

1. e4 {[%emt 0:00:00]} Nc6 {[%emt 0:00:05]} 2. Nf3 {[%emt 0:00:05]} d6 {[%emt 0:00:03]} 3. d4 {[%emt 0:00:03]} Nf6 {[%emt 0:00:03]} 4. Nc3 {[%emt 0:00:04]} g6 {[%emt 0:00:03]} 5. Be3 {[%emt 0:00:17]} Bg7 {[%emt 0:00:04]} 6. Qd2 {[%emt 0:00:06]} O-O {[%emt 0:00:04]} 7. d5 {[%emt 0:00:08]} Nb8 {[%emt 0:00:06]} 8. Bh6 {[%emt 0:00:08]} c6 {[%emt 0:00:40]} 9. Bxg7 {[%emt 0:00:04]} Kxg7 {[%emt 0:00:04]} 10. Nd4 {[%emt 0:00:01]} Qb6 {[%emt 0:00:57]} 11. O-O-O {[%emt 0:01:01]} Re8 {[%emt 0:02:23]} 12. f3 {[%emt 0:01:27]} c5 {[%emt 0:00:47]} 13. Nb3 {[%emt 0:00:45]} a6 {[%emt 0:00:27]} 14. h4 {[%emt 0:01:08]} h5 {[%emt 0:00:03]} 15. Be2 {[%emt 0:01:33]} Nbd7 {[%emt 0:00:56]} 16. g4 {[%emt 0:00:38]} Rh8 {[%emt 0:00:03]} 17. g5 {[%emt 0:00:16]} Ne8 {[%emt 0:00:33]} 18. f4 {[%emt 0:00:30]} Qd8 {[%emt 0:00:02]} 19. e5 {[%emt 0:01:24]} Nb6 {[%emt 0:00:03]} 20. Ne4 {[%emt 0:00:20]} Na4 {[%emt 0:01:13]} 21. e6 {[%emt 0:01:49]} fxe6 {[%emt 0:00:59]} 22. dxe6 {[%emt 0:00:03]} Bxe6 {[%emt 0:00:06]} 23. Nbxc5 {[%emt 0:00:17]} Nxc5 {[%emt 0:00:35]} 24. Nxc5 {[%emt 0:00:03]} Bf5 {[%emt 0:00:05]} 25. Bd3 {[%emt 0:01:11]} dxc5 {[%emt 0:00:32]} 26. Qe3 {[%emt 0:02:21]} Nd6 {[%emt 0:04:10]} 27. Bxf5 {[%emt 0:00:21]} gxf5 {[%emt 0:00:04]} 28. Rhe1 {[%emt 0:00:15]} Rf8 {[%emt 0:00:48]} 29. Qxc5 {[%emt 0:00:19]} Qd7 {[%emt 0:00:22]} 30. Qe5+ {[%emt 0:00:29]} Kg8 {[%emt 0:00:38]} 31. Qd5+ {[%emt 0:00:14]} Kg7 {[%emt 0:00:04]} 32. Qe5+ {[%emt 0:00:02]} Kg8 {[%emt 0:00:03]} 33. Qd5+ {[%emt 0:00:04]} Kg7 {[%emt 0:00:02]} 34. Qe5+ {[%emt 0:00:09]} 1/2-1/2

[Event "European Online Club-ch-G 2021"]
[Site "Online"]
[Date "2021.03.27"]
[Round "5.1"]
[White "Gumularz, Szymon"]
[Black "Altun, Arda"]
[Result "1-0"]
[ECO "B13"]
[WhiteElo "2517"]
[BlackElo "2074"]
[Annotator "ChessBase"]
[PlyCount "63"]
[EventDate "2021.03.27"]
[EventType "team-tourn"]
[EventCountry "NET"]
[SourceTitle "playchess.com"]
[Source "ChessBase"]
[SourceQuality "1"]
[TimeControl "900+5"]

1. e4 {[%emt 0:00:00]} c6 {[%emt 0:00:05]} 2. d4 {[%emt 0:00:03]} d5 {[%emt 0:00:02]} 3. exd5 {[%emt 0:00:01]} cxd5 {[%emt 0:00:02]} 4. Bd3 {[%emt 0:00:02]} Nc6 {[%emt 0:00:02]} 5. c3 {[%emt 0:00:01]} g6 {[%emt 0:00:02]} 6. Nf3 {[%emt 0:00:06]} Bf5 {[%emt 0:00:06]} 7. Bxf5 {[%emt 0:00:02]} gxf5 {[%emt 0:00:02]} 8. Bg5 {[%emt 0:00:02]} Qc7 {[%emt 0:00:21]} 9. c4 {[%emt 0:00:10]} dxc4 {[%emt 0:01:13]} 10. d5 {[%emt 0:00:10]} O-O-O {[%emt 0:00:38]} 11. Nc3 {[%emt 0:00:03]} f6 {[%emt 0:00:50]} 12. Bd2 {[%emt 0:05:08]} Ne5 {[%emt 0:02:18]} 13. O-O {[%emt 0:00:22]} e6 {[%emt 0:01:11]} 14. Nd4 {[%emt 0:01:27]} exd5 {[%emt 0:02:01]} 15. Ne6 {[%emt 0:00:17]} Qd7 {[%emt 0:00:14]} 16. Nxd8 {[%emt 0:00:03]} Qxd8 {[%emt 0:00:06]} 17. Be3 {[%emt 0:00:14]} Nd3 {[%emt 0:01:45]} 18. Bxa7 {[%emt 0:00:37]} Ne7 {[%emt 0:01:29]} 19. Qf3 {[%emt 0:01:41]} Ne5 {[%emt 0:01:33]} 20. Qh5 {[%emt 0:00:15]} Rg8 {[%emt 0:00:36]} 21. Rad1 {[%emt 0:00:11]} Qd7 {[%emt 0:00:25]} 22. Bc5 {[%emt 0:00:08]} Qc6 {[%emt 0:01:36]} 23. Bd4 {[%emt 0:00:24]} Nd3 {[%emt 0:00:08]} 24. Qf7 {[%emt 0:00:15]} Nf4 {[%emt 0:00:03]} 25. g3 {[%emt 0:00:06]} Nh3+ {[%emt 0:00:07]} 26. Kg2 {[%emt 0:00:28]} Nf4+ {[%emt 0:00:02]} 27. Kh1 {[%emt 0:00:14]} Nd3 {[%emt 0:00:09]} 28. Rxd3 {[%emt 0:01:27]} cxd3 {[%emt 0:00:02]} 29. Rd1 {[%emt 0:00:03]} f4 {[%emt 0:00:05]} 30. Rxd3 {[%emt 0:00:04]} Qc4 {[%emt 0:00:04]} 31. Qe8+ {[%emt 0:00:07]} Kc7 {[%emt 0:00:02]} 32. Nb5+ {[%emt 0:00:02]} 1-0